[Event "SS Manhem Chess Week 2022: Goteborg Open"]
[Site "Schackcentrum, Vegagatan 20, Gothenburg, Sweden"]
[Date "2022.08.12"]
[Round "3.9"]
[White "Degerfeldt, Sven"]
[Black "Persson, Sebastian"]
[Result "0-1"]
[TimeControl "15 minutes + 5 seconds per move from move one (Round 1 - 4) / 90 minutes + 30 seconds per move from move one (Round 5 - 8)"]
[WhiteFideId "1717430"]
[BlackFideId "1764187"]
[WhiteElo "1842"]
[BlackElo "1631"]

1. d4 {[%clk 00:15:07]} d5 {[%clk 00:15:08]} {[%emt 00:00:02]} 2. c4 {[%clk
00:15:11]} {[%emt 00:00:01]} c6 {[%clk 00:15:12]} {[%emt 00:00:03]} 3. Nf3
{[%clk 00:15:13]} {[%emt 00:00:01]} Nf6 {[%clk 00:15:16]} {[%emt 00:00:02]} 4.
Nc3 {[%clk 00:15:17]} {[%emt 00:00:01]} e6 {[%clk 00:15:08]} {[%emt 00:00:13]}
5. e3 {[%clk 00:15:07]} {[%emt 00:00:14]} Bd6 {[%clk 00:14:58]} {[%emt
00:00:16]} 6. a3 {[%clk 00:15:07]} {[%emt 00:00:05]} a5 {[%clk 00:14:57]}
{[%emt 00:00:06]} 7. b3 {[%clk 00:14:45]} {[%emt 00:00:26]} O-O {[%clk
00:14:40]} {[%emt 00:00:22]} 8. Bd3 {[%clk 00:14:47]} {[%emt 00:00:03]} Nbd7
{[%clk 00:14:37]} {[%emt 00:00:09]} 9. Qc2 {[%clk 00:14:24]} {[%emt 00:00:27]}
Re8 {[%clk 00:14:26]} {[%emt 00:00:17]} 10. O-O {[%clk 00:14:15]} {[%emt
00:00:14]} dxc4 {[%clk 00:13:36]} {[%emt 00:00:54]} 11. bxc4 {[%clk 00:14:14]}
{[%emt 00:00:06]} e5 {[%clk 00:13:32]} {[%emt 00:00:10]} 12. dxe5 {[%clk
00:12:19]} {[%emt 00:01:59]} Nxe5 {[%clk 00:13:28]} {[%emt 00:00:09]} 13. Nxe5
{[%clk 00:12:18]} {[%emt 00:00:06]} Bxe5 {[%clk 00:13:28]} {[%emt 00:00:06]} 14.
f4 {[%clk 00:12:16]} {[%emt 00:00:06]} Bb8 {[%clk 00:12:37]} {[%emt 00:00:56]}
15. Kh1 {[%clk 00:09:53]} {[%emt 00:02:29]} Ba7 {[%clk 00:12:07]} {[%emt
00:00:35]} 16. Ne4 {[%clk 00:08:17]} {[%emt 00:01:42]} Ng4 {[%clk 00:10:26]}
{[%emt 00:01:44]} 17. c5 {[%clk 00:05:46]} {[%emt 00:02:36]} Qh4 {[%clk
00:08:06]} {[%emt 00:02:25]} 18. g3 {[%clk 00:05:35]} {[%emt 00:00:16]} Qh5
{[%clk 00:08:01]} {[%emt 00:00:10]} 19. h4 {[%clk 00:02:17]} {[%emt 00:03:22]}
Qd5 {[%clk 00:05:48]} {[%emt 00:02:18]} 20. Kg1 {[%clk 00:01:34]} {[%emt
00:00:48]} Bf5 {[%clk 00:05:29]} {[%emt 00:00:24]} 21. Nf6+ {[%clk 00:01:04]}
{[%emt 00:00:36]} Nxf6 {[%clk 00:05:30]} {[%emt 00:00:04]} 22. Bxf5 {[%clk
00:01:07]} {[%emt 00:00:02]} Bxc5 {[%clk 00:05:26]} {[%emt 00:00:09]} 23. Bb2
{[%clk 00:00:08]} {[%emt 00:01:03]} Rxe3 {[%clk 00:05:02]} {[%emt 00:00:30]} 24.
Kh2 {[%clk 00:00:11]} {[%emt 00:00:02]} Rae8 {[%clk 00:04:05]} {[%emt
00:01:02]} 25. Rf2 {[%clk 00:00:13]} {[%emt 00:00:02]} Nh5 {[%clk 00:00:45]}
{[%emt 00:03:25]} 26. Rg2 {[%clk 00:00:09]} {[%emt 00:00:10]} g6 {[%clk
00:00:29]} {[%emt 00:00:21]} 27. Bg4 {[%clk 00:00:10]} {[%emt 00:00:04]} Ng7
{[%clk 00:00:23]} {[%emt 00:00:11]} 28. Bxg7 {[%clk 00:00:09]} {[%emt
00:00:06]} Kxg7 {[%clk 00:00:27]} {[%emt 00:00:01]} 29. Rd1 {[%clk 00:00:07]}
{[%emt 00:00:06]} Bd4 {[%clk 00:00:09]} {[%emt 00:00:24]} 0-1

[Event "SS Manhem Chess Week 2022: Goteborg Open"]
[Site "Schackcentrum, Vegagatan 20, Gothenburg, Sweden"]
[Date "2022.08.12"]
[Round "3.10"]
[White "Mohammed, Safian Haj"]
[Black "Hammar, Arvid"]
[Result "0-1"]
[TimeControl "15 minutes + 5 seconds per move from move one (Round 1 - 4) / 90 minutes + 30 seconds per move from move one (Round 5 - 8)"]
[WhiteFideId "1729276"]
[BlackFideId "1735977"]
[WhiteElo "1794"]
[BlackElo "1384"]

1. e4 {[%clk 00:15:08]} {[%emt 00:00:03]} e5 {[%clk 00:15:09]} 2. Nf3 {[%clk
00:15:12]} Nc6 {[%clk 00:15:13]} {[%emt 00:00:02]} 3. Bb5 {[%clk 00:15:15]}
{[%emt 00:00:02]} Nf6 {[%clk 00:15:15]} {[%emt 00:00:03]} 4. O-O {[%clk
00:15:18]} {[%emt 00:00:01]} d6 {[%clk 00:15:09]} {[%emt 00:00:12]} 5. Re1
{[%clk 00:15:18]} {[%emt 00:00:05]} Be7 {[%clk 00:15:09]} {[%emt 00:00:06]} 6.
c3 {[%clk 00:15:21]} {[%emt 00:00:02]} O-O {[%clk 00:15:04]} {[%emt 00:00:10]}
7. h3 {[%clk 00:15:23]} {[%emt 00:00:02]} a6 {[%clk 00:14:50]} {[%emt
00:00:19]} 8. Ba4 {[%clk 00:15:27]} {[%emt 00:00:01]} b5 {[%clk 00:14:47]}
{[%emt 00:00:09]} 9. Bb3 {[%clk 00:15:30]} {[%emt 00:00:02]} Na5 {[%clk
00:14:26]} {[%emt 00:00:26]} 10. Bc2 {[%emt 00:00:07]} c5 {[%clk 00:14:26]} 11.
d4 {[%clk 00:15:31]} {[%emt 00:00:07]} exd4 {[%clk 00:13:24]} {[%emt 00:01:07]}
12. cxd4 {[%clk 00:15:34]} {[%emt 00:00:01]} cxd4 {[%clk 00:12:52]} {[%emt
00:00:37]} 13. Nxd4 {[%clk 00:15:35]} {[%emt 00:00:04]} Nc4 {[%clk 00:11:23]}
{[%emt 00:01:34]} 14. b3 {[%clk 00:15:26]} {[%emt 00:00:14]} Ne5 {[%clk
00:11:24]} {[%emt 00:00:04]} 15. f4 {[%clk 00:15:12]} {[%emt 00:00:19]} Ng6
{[%clk 00:11:00]} {[%emt 00:00:29]} 16. Be3 {[%clk 00:13:45]} {[%emt 00:01:32]}
Bd7 {[%clk 00:08:16]} {[%emt 00:02:50]} 17. Nd2 {[%clk 00:13:45]} {[%emt
00:00:04]} b4 {[%clk 00:08:00]} {[%emt 00:00:21]} 18. N2f3 {[%clk 00:13:28]}
{[%emt 00:00:22]} a5 {[%clk 00:07:48]} {[%emt 00:00:17]} 19. e5 {[%clk
00:12:56]} {[%emt 00:00:37]} Nd5 {[%clk 00:07:26]} {[%emt 00:00:28]} 20. Ne2
{[%clk 00:11:30]} {[%emt 00:01:30]} Nxe3 {[%clk 00:06:43]} {[%emt 00:00:48]} 21.
Qd2 {[%clk 00:11:31]} {[%emt 00:00:05]} Qb6 {[%clk 00:05:51]} {[%emt 00:00:57]}
22. Kh1 {[%clk 00:11:29]} {[%emt 00:00:06]} Rac8 {[%clk 00:04:22]} {[%emt
00:01:35]} 23. Bd3 {[%clk 00:11:17]} {[%emt 00:00:17]} Rfd8 {[%clk 00:04:08]}
{[%emt 00:00:19]} 24. Ned4 {[%clk 00:11:08]} {[%emt 00:00:14]} dxe5 {[%clk
00:03:26]} {[%emt 00:00:47]} 25. fxe5 {[%clk 00:11:05]} {[%emt 00:00:07]} Nd5
{[%clk 00:02:40]} {[%emt 00:00:51]} 26. Bf5 {[%clk 00:09:55]} {[%emt 00:01:16]}
Bxf5 {[%clk 00:02:13]} {[%emt 00:00:32]} 27. Nxf5 {[%clk 00:09:58]} {[%emt
00:00:01]} Nc3 {[%clk 00:01:47]} {[%emt 00:00:31]} 28. Qb2 {[%clk 00:09:18]}
{[%emt 00:00:45]} Bc5 {[%clk 00:01:31]} {[%emt 00:00:21]} 29. h4 {[%clk
00:09:08]} {[%emt 00:00:16]} h5 {[%clk 00:01:09]} {[%emt 00:00:27]} 30. Qc1
{[%clk 00:09:00]} {[%emt 00:00:12]} Re8 {[%clk 00:00:47]} {[%emt 00:00:26]} 31.
Qg5 {[%clk 00:08:54]} {[%emt 00:00:12]} Qc6 {[%clk 00:00:32]} {[%emt 00:00:19]}
32. Qxh5 {[%clk 00:08:32]} {[%emt 00:00:28]} Nf4 {[%clk 00:00:25]} {[%emt
00:00:13]} 33. Qg4 {[%clk 00:08:25]} {[%emt 00:00:11]} Qg6 {[%clk 00:00:18]}
{[%emt 00:00:12]} 34. Qxf4 {[%clk 00:08:26]} {[%emt 00:00:04]} Nd5 {[%clk
00:00:22]} {[%emt 00:00:02]} 35. Qe4 {[%clk 00:05:53]} {[%emt 00:02:38]} Nf6
{[%clk 00:00:18]} {[%emt 00:00:09]} 36. Qb1 {[%clk 00:05:20]} {[%emt 00:00:38]}
Ng4 {[%clk 00:00:17]} {[%emt 00:00:06]} 37. N5d4 {[%clk 00:04:50]} {[%emt
00:00:35]} Nf2+ {[%clk 00:00:18]} {[%emt 00:00:03]} 38. Kh2 {[%clk 00:04:39]}
{[%emt 00:00:15]} Ng4+ {[%clk 00:00:18]} {[%emt 00:00:06]} 39. Kh3 {[%clk
00:03:54]} {[%emt 00:00:50]} Nf2+ {[%clk 00:00:18]} {[%emt 00:00:06]} 40. Kh2
{[%clk 00:03:57]} {[%emt 00:00:02]} Ng4+ {[%clk 00:00:20]} {[%emt 00:00:03]} 41.
Kg1 {[%clk 00:03:17]} {[%emt 00:00:44]} Bxd4+ {[%clk 00:00:24]} {[%emt
00:00:02]} 42. Nxd4 {[%clk 00:03:17]} {[%emt 00:00:04]} Qxb1 {[%clk 00:00:26]}
{[%emt 00:00:04]} 43. Raxb1 {[%clk 00:03:20]} {[%emt 00:00:03]} Nxe5 {[%clk
00:00:25]} {[%emt 00:00:05]} 44. Nb5 {[%clk 00:03:02]} {[%emt 00:00:22]} Rc5
{[%clk 00:00:21]} {[%emt 00:00:10]} 45. Nd6 {[%clk 00:02:49]} {[%emt 00:00:17]}
Re6 {[%clk 00:00:23]} {[%emt 00:00:04]} 46. Ne4 {[%clk 00:02:49]} {[%emt
00:00:05]} Rc2 {[%clk 00:00:16]} {[%emt 00:00:12]} 47. Ng5 {[%clk 00:02:36]}
{[%emt 00:00:18]} Re7 {[%clk 00:00:17]} {[%emt 00:00:03]} 48. Rbd1 {[%clk
00:02:30]} {[%emt 00:00:12]} g6 {[%clk 00:00:16]} {[%emt 00:00:05]} 49. Rd5
{[%clk 00:02:12]} {[%emt 00:00:23]} f6 {[%clk 00:00:18]} {[%emt 00:00:04]} 50.
Ne4 {[%clk 00:02:07]} {[%emt 00:00:10]} Kg7 {[%clk 00:00:16]} {[%emt 00:00:06]}
51. Rxa5 {[%clk 00:01:58]} {[%emt 00:00:14]} f5 {[%clk 00:00:13]} {[%emt
00:00:09]} 52. Ng5 {[%clk 00:01:53]} {[%emt 00:00:09]} Ng4 {[%clk 00:00:13]}
{[%emt 00:00:05]} 53. Rxe7+ {[%clk 00:01:56]} {[%emt 00:00:02]} Kf8 {[%emt
00:00:21]} 54. Rb7 {[%clk 00:01:44]} Rc1# {[%clk 00:00:11]} {[%emt 00:00:02]}
0-1

[Event "SS Manhem Chess Week 2022: Goteborg Open"]
[Site "Schackcentrum, Vegagatan 20, Gothenburg, Sweden"]
[Date "2022.08.12"]
[Round "3.11"]
[White "Imani Lasaki, Hamed"]
[Black "Westlund, Tim"]
[Result "0-1"]
[TimeControl "15 minutes + 5 seconds per move from move one (Round 1 - 4) / 90 minutes + 30 seconds per move from move one (Round 5 - 8)"]
[WhiteFideId "1766970"]
[BlackFideId "1754718"]
[WhiteElo "1577"]
[BlackElo "1760"]

1. d4 {[%clk 00:15:09]} {[%emt 00:30:15]} Nf6 {[%clk 00:15:08]} {[%emt
00:00:02]} 2. c4 {[%clk 00:15:13]} {[%emt 00:00:02]} e6 {[%clk 00:15:09]}
{[%emt 00:00:04]} 3. Nc3 {[%clk 00:15:07]} {[%emt 00:00:11]} Bb4 {[%clk
00:15:11]} {[%emt 00:00:02]} 4. Bg5 {[%clk 00:14:48]} {[%emt 00:00:24]} O-O
{[%clk 00:15:06]} {[%emt 00:00:10]} 5. e3 {[%clk 00:14:43]} {[%emt 00:00:10]}
d5 {[%clk 00:15:06]} {[%emt 00:00:05]} 6. Qc2 {[%clk 00:14:35]} {[%emt
00:00:13]} Nbd7 {[%clk 00:15:06]} {[%emt 00:00:05]} 7. Nf3 {[%clk 00:14:10]}
{[%emt 00:00:30]} b6 {[%clk 00:14:58]} {[%emt 00:00:14]} 8. cxd5 {[%clk
00:14:05]} {[%emt 00:00:10]} exd5 {[%clk 00:14:57]} {[%emt 00:00:06]} 9. a3
{[%clk 00:13:54]} {[%emt 00:00:16]} Be7 {[%clk 00:14:58]} {[%emt 00:00:03]} 10.
Bd3 {[%clk 00:13:47]} {[%emt 00:00:12]} Bb7 {[%clk 00:14:42]} {[%emt 00:00:21]}
11. O-O {[%clk 00:13:38]} {[%emt 00:00:14]} Ne4 {[%clk 00:13:55]} {[%emt
00:00:52]} 12. Bxe7 {[%clk 00:13:33]} {[%emt 00:00:10]} Qxe7 {[%clk 00:13:55]}
{[%emt 00:00:05]} 13. Rac1 {[%clk 00:12:56]} {[%emt 00:00:42]} f5 {[%clk
00:13:39]} {[%emt 00:00:21]} 14. Ne2 {[%clk 00:12:40]} {[%emt 00:00:20]} Rac8
{[%clk 00:13:33]} {[%emt 00:00:12]} 15. Qb3 {[%clk 00:12:26]} {[%emt 00:00:19]}
c5 {[%clk 00:13:07]} {[%emt 00:00:31]} 16. Bb1 {[%clk 00:08:41]} {[%emt
00:03:50]} Ba6 {[%clk 00:11:31]} {[%emt 00:01:41]} 17. Rfe1 {[%clk 00:08:22]}
{[%emt 00:00:24]} Ndf6 {[%clk 00:10:31]} {[%emt 00:01:04]} 18. Qa4 {[%clk
00:08:07]} {[%emt 00:00:20]} Bxe2 {[%clk 00:07:17]} {[%emt 00:03:19]} 19. Rxe2
{[%clk 00:08:05]} {[%emt 00:00:08]} cxd4 {[%clk 00:07:10]} {[%emt 00:00:13]} 20.
Rxc8 {[%clk 00:07:23]} {[%emt 00:00:46]} Rxc8 {[%clk 00:07:04]} {[%emt
00:00:10]} 21. Qxd4 {[%clk 00:07:07]} {[%emt 00:00:22]} Rc1+ {[%clk 00:05:04]}
{[%emt 00:02:04]} 22. Re1 {[%clk 00:07:10]} {[%emt 00:00:02]} Qc7 {[%clk
00:04:50]} {[%emt 00:00:19]} 23. Ba2 {[%clk 00:05:41]} {[%emt 00:01:34]} Rxe1+
{[%clk 00:00:49]} {[%emt 00:04:06]} 24. Nxe1 {[%clk 00:05:45]} {[%emt
00:00:01]} Qc5 {[%clk 00:00:35]} {[%emt 00:00:19]} 25. f3 {[%clk 00:05:01]}
{[%emt 00:00:50]} Qxd4 {[%clk 00:00:37]} {[%emt 00:00:03]} 26. exd4 {[%clk
00:05:03]} {[%emt 00:00:02]} Nd6 {[%clk 00:00:38]} {[%emt 00:00:03]} 27. Nd3
{[%clk 00:05:03]} {[%emt 00:00:06]} Nb5 {[%clk 00:00:35]} {[%emt 00:00:06]} 28.
Nb4 {[%clk 00:04:40]} {[%emt 00:00:30]} Nxd4 {[%clk 00:00:37]} {[%emt
00:00:03]} 29. Bxd5+ {[%clk 00:04:37]} {[%emt 00:00:08]} Nxd5 {[%clk 00:00:39]}
{[%emt 00:00:03]} 30. Nxd5 {[%clk 00:04:41]} {[%emt 00:00:02]} Kf7 {[%clk
00:00:40]} {[%emt 00:00:03]} 31. Kf2 {[%clk 00:04:41]} {[%emt 00:00:06]} Nc6
{[%clk 00:00:35]} {[%emt 00:00:09]} 32. Ke3 {[%clk 00:04:41]} {[%emt 00:00:05]}
Na5 {[%clk 00:00:34]} {[%emt 00:00:05]} 33. Kd3 {[%clk 00:04:21]} {[%emt
00:00:27]} Nb3 {[%clk 00:00:26]} {[%emt 00:00:13]} 34. Nb4 {[%clk 00:03:45]}
{[%emt 00:00:40]} Nc5+ {[%clk 00:00:27]} {[%emt 00:00:04]} 35. Kc4 {[%clk
00:03:40]} {[%emt 00:00:11]} Ke6 {[%clk 00:00:25]} {[%emt 00:00:07]} 36. Nc6
{[%clk 00:03:41]} {[%emt 00:00:04]} a5 {[%clk 00:00:19]} {[%emt 00:00:10]} 37.
Kb5 {[%clk 00:03:32]} {[%emt 00:00:14]} Nd7 {[%clk 00:00:18]} {[%emt 00:00:05]}
38. f4 {[%clk 00:03:21]} {[%emt 00:00:18]} Kd5 {[%clk 00:00:18]} {[%emt
00:00:05]} 39. g3 {[%clk 00:03:15]} {[%emt 00:00:11]} Ke4 {[%clk 00:00:14]}
{[%emt 00:00:08]} 40. Ne7 {[%clk 00:03:04]} {[%emt 00:00:17]} g6 {[%clk
00:00:14]} {[%emt 00:00:05]} 41. Kc6 {[%clk 00:03:00]} {[%emt 00:00:09]} Nc5
{[%clk 00:00:17]} {[%emt 00:00:02]} 42. Kxb6 {[%clk 00:03:01]} {[%emt
00:00:04]} Na4+ {[%clk 00:00:21]} {[%emt 00:00:01]} 43. Kxa5 {[%clk 00:03:04]}
{[%emt 00:00:02]} Nxb2 {[%clk 00:00:24]} {[%emt 00:00:01]} 44. Kb4 {[%clk
00:02:56]} {[%emt 00:00:13]} Kf3 {[%clk 00:00:23]} {[%emt 00:00:05]} 45. a4
{[%clk 00:02:51]} {[%emt 00:00:11]} Nxa4 {[%clk 00:00:07]} {[%emt 00:00:22]} 46.
Kxa4 {[%clk 00:02:55]} Kg2 {[%clk 00:00:09]} {[%emt 00:00:02]} 47. Nd5 {[%clk
00:01:56]} {[%emt 00:01:04]} Kxh2 {[%clk 00:00:11]} {[%emt 00:00:02]} 48. Nf6
{[%clk 00:01:59]} {[%emt 00:00:03]} Kxg3 {[%clk 00:00:12]} {[%emt 00:00:04]} 49.
Nd5 {[%clk 00:01:19]} {[%emt 00:00:45]} h5 {[%clk 00:00:15]} {[%emt 00:00:02]}
50. Ne7 {[%clk 00:01:15]} {[%emt 00:00:09]} h4 {[%clk 00:00:14]} {[%emt
00:00:06]} 51. Nxg6 {[%clk 00:01:19]} {[%emt 00:00:02]} h3 {[%clk 00:00:17]}
{[%emt 00:00:01]} 52. Ne7 {[%clk 00:01:20]} {[%emt 00:00:05]} h2 {[%clk
00:00:16]} {[%emt 00:00:05]} 53. Nxf5+ {[%clk 00:01:23]} {[%emt 00:00:02]} Kh3
{[%clk 00:00:18]} {[%emt 00:00:01]} 54. Ne7 {[%clk 00:00:56]} {[%emt 00:00:34]}
h1=Q {[%clk 00:00:20]} {[%emt 00:00:03]} 55. f5 {[%clk 00:01:00]} Qa8+ {[%clk
00:00:18]} {[%emt 00:00:06]} 56. Kb5 {[%clk 00:00:59]} {[%emt 00:00:06]} Qb7+
{[%clk 00:00:23]} 57. Kc5 {[%clk 00:01:02]} {[%emt 00:00:02]} Qxe7+ {[%clk
00:00:26]} {[%emt 00:00:01]} 58. Kd5 {[%clk 00:01:07]} Qf6 {[%clk 00:00:30]}
{[%emt 00:00:02]} 59. Ke4 {[%clk 00:01:11]} Kg4 {[%clk 00:00:34]} {[%emt
00:00:01]} 0-1

[Event "SS Manhem Chess Week 2022: Goteborg Open"]
[Site "Schackcentrum, Vegagatan 20, Gothenburg, Sweden"]
[Date "2022.08.12"]
[Round "3.15"]
[White "Johansson, Jan"]
[Black "Andreasson, Leo"]
[Result "1-0"]
[TimeControl "15 minutes + 5 seconds per move from move one (Round 1 - 4) / 90 minutes + 30 seconds per move from move one (Round 5 - 8)"]
[WhiteFideId "1747568"]
[BlackFideId "1768980"]
[WhiteElo "1666"]
[BlackElo "1132"]

1. d4 {[%clk 00:15:07]} {[%emt 00:00:03]} Nf6 {[%clk 00:15:05]} {[%emt
00:00:05]} 2. Bf4 {[%clk 00:15:10]} {[%emt 00:00:02]} g6 {[%clk 00:15:08]}
{[%emt 00:00:02]} 3. Nc3 {[%clk 00:14:59]} {[%emt 00:00:17]} Bg7 {[%clk
00:15:08]} {[%emt 00:00:05]} 4. Qd2 {[%clk 00:14:58]} {[%emt 00:00:06]} O-O
{[%clk 00:15:04]} {[%emt 00:00:09]} 5. Bh6 {[%clk 00:14:55]} {[%emt 00:00:08]}
d5 {[%clk 00:14:53]} {[%emt 00:00:16]} 6. Nf3 {[%clk 00:14:35]} {[%emt
00:00:25]} Bg4 {[%clk 00:14:15]} {[%emt 00:00:43]} 7. Ne5 {[%clk 00:14:26]}
{[%emt 00:00:14]} Bf5 {[%clk 00:14:07]} {[%emt 00:00:14]} 8. Bxg7 {[%clk
00:14:24]} {[%emt 00:00:07]} Kxg7 {[%clk 00:14:07]} {[%emt 00:00:05]} 9. f3
{[%clk 00:14:20]} {[%emt 00:00:09]} Nbd7 {[%clk 00:13:56]} {[%emt 00:00:16]} 10.
g4 {[%clk 00:14:22]} {[%emt 00:00:04]} Be6 {[%clk 00:13:48]} {[%emt 00:00:12]}
11. h4 {[%clk 00:14:16]} {[%emt 00:00:11]} Nxe5 {[%clk 00:13:23]} {[%emt
00:00:31]} 12. dxe5 {[%clk 00:14:10]} {[%emt 00:00:10]} Nd7 {[%clk 00:13:17]}
{[%emt 00:00:11]} 13. h5 {[%clk 00:14:05]} {[%emt 00:00:10]} Nxe5 {[%clk
00:12:57]} {[%emt 00:00:25]} 14. hxg6 {[%clk 00:14:07]} {[%emt 00:00:03]} Rh8
{[%clk 00:11:28]} {[%emt 00:01:34]} 15. Qh6+ {[%clk 00:13:50]} {[%emt
00:00:22]} Kg8 {[%clk 00:11:31]} {[%emt 00:00:02]} 16. g7 {[%clk 00:13:36]}
{[%emt 00:00:19]} Nxf3+ {[%clk 00:00:06]} {[%emt 00:11:31]} 17. exf3 {[%clk
00:13:34]} {[%emt 00:00:06]} Bf5 {[%clk 00:00:09]} {[%emt 00:00:02]} 18. gxf5
{[%clk 00:13:02]} {[%emt 00:00:37]} Qd6 {[%clk 00:00:06]} {[%emt 00:00:08]} 19.
gxh8=Q+ {[%clk 00:12:55]} {[%emt 00:00:11]} Kxh8 {[%clk 00:00:06]} {[%emt
00:00:06]} 20. Qxh7# {[%emt 00:00:04]} 1-0